bitfinex/quotes_ETHUSD_20210401
["timestamp","ask_amount","ask_price","bid_price","bid_amount"]
[1617305569665,3.14,1967.4,1967.0,2.0]
[1617305570261,0.28,1967.5,1967.0,2.0]
[1617305570460,18.028,1967.6,1967.0,2.0]
[1617305570659,18.308,1967.6,1967.0,2.0]
[1617305570859,2.86,1967.5,1967.0,2.0]
[1617305571060,2.86,1967.5,1967.1,0.39]
[1617305571260,2.86,1967.5,1967.0,10.02477]
[1617305571261,2.69577411,1967.5,1967.0,10.02477]
[1617305571463,3.14,1967.4,1967.0,2.0]
[1617305571660,3.14,1967.4,1967.0,2.38]
[1617305572304,3.14,1967.4,1967.0,2.39]
[1617305572506,3.14,1967.4,1967.2,0.39]
[1617305572706,3.14,1967.4,1967.0,2.0]
[1617305572906,3.14,1967.4,1967.1,0.41]
[1617305573304,18.308,1967.6,1967.1,0.41]
[1617305573506,18.308,1967.6,1967.0,2.0]
[1617305573704,2.83132494,1967.5,1967.0,9.62457]
[1617305573905,2.74,1967.5,1967.0,9.62457]
[1617305574108,2.78,1967.4,1967.0,9.62457]
[1617305575112,2.78,1967.4,1967.0,2.0]
[1617305575113,5.34778038,1967.3,1967.0,2.0]
[1617305575312,5.01,1967.2,1966.2,15.0628]
[1617305575514,0.336,1967.0,1966.2,14.6828]
[1617305575712,5.10132494,1966.9,1965.9,0.39]
[1617305575913,0.41,1966.5,1965.3,7.0]
[1617305576114,11.12413832,1966.4,1965.3,12.01487]
[1617305576314,11.12413832,1966.4,1965.5,7.63021]
[1617305576510,11.12413832,1966.4,1966.0,2.0]
[1617305576715,7.3751,1966.4,1966.0,2.0]
[1617305577112,11.12413832,1966.4,1966.0,2.0]
[1617305577350,2.8,1966.3,1966.0,2.0]
[1617305577550,25.29903832,1966.2,1966.0,2.0]
[1617305577745,21.55,1966.2,1966.0,2.0]
[1617305578749,21.55,1966.2,1966.1,0.95]
[1617305579143,7.3751,1966.4,1966.1,0.95]
[1617305579745,12.13107054,1966.4,1966.1,0.95]
[1617305579987,12.13107054,1966.4,1966.1,0.9]
[1617305580188,7.3751,1966.4,1966.1,0.9]
[1617305580388,7.7851,1966.4,1966.1,0.9]
[1617305580588,23.73,1966.2,1965.5,3.79518028]
[1617305580791,23.73,1966.2,1965.6,10.31312]
[1617305580792,4.15132494,1966.1,1965.6,10.31312]
[1617305580988,4.06,1966.1,1965.7,2.0]
[1617305581188,10.8971,1966.0,1965.7,2.0]
[1617305581788,10.8971,1966.0,1965.7,1.95]
[1617305582187,10.8971,1966.0,1965.6,0.14]
[1617305582389,6.4571,1966.0,1965.6,0.14]
[1617305582589,6.16281661,1966.0,1965.6,0.14]
[1617305582992,6.16281661,1966.0,1965.5,3.78518028]
[1617305583190,6.16281661,1966.0,1965.5,0.38]
[1617305583391,6.16281661,1966.0,1965.4,0.14]
[1617305583589,6.16281661,1966.0,1965.4,2.53]
[1617305583989,6.16281661,1966.0,1965.6,0.16137709]
[1617305584192,10.17209781,1966.0,1965.6,0.16137709]
[1617305584993,10.17209781,1966.0,1965.4,7.09e-06]
[1617305584994,0.4,1965.8,1965.4,7.09e-06]
[1617305585241,0.38,1965.9,1965.3,5.01]
[1617305585242,4.1122812,1965.7,1965.3,7.09e-06]
[1617305585645,0.09132494,1965.6,1964.6,1.0]
[1617305585841,0.09132494,1965.6,1964.8,1.2]
[1617305585842,0.357,1965.2,1964.8,1.2]
[1617305586042,0.357,1965.2,1964.6,1.0]
[1617305586043,7.4905,1965.2,1964.9,1.2]
[1617305586242,34.02625,1965.0,1964.9,1.2]
[1617305586443,34.02625,1965.0,1964.9,9.2]
[1617305586643,34.02625,1965.0,1964.6,1.0]
[1617305586841,3.82836078,1964.9,1964.6,1.0]
[1617305587041,3.82836078,1964.9,1964.7,1.2]
[1617305587246,3.82836078,1964.9,1964.2,0.00144859]
[1617305587247,0.09132494,1964.7,1964.2,0.00144859]
[1617305587446,4.50106206,1964.7,1964.2,0.00144859]
[1617305587848,0.09132494,1964.5,1964.2,0.00144859]
[1617305588050,38.6305,1964.3,1964.2,1.20144859]
[1617305588447,38.2205,1964.3,1964.2,1.20144859]
[1617305589448,38.6105,1964.3,1964.2,0.00144859]
[1617305589649,8.5205,1964.3,1964.2,0.00144859]
[1617305589853,18.5705,1964.3,1964.2,0.00144859]
[1617305590049,22.45,1964.2,1964.1,1.92971259]
[1617305590248,17.4,1964.2,1964.1,1.92971259]
[1617305590664,5.01,1964.4,1964.1,1.92971259]
[1617305590866,1.55134443,1964.5,1964.1,2.31971259]
[1617305590867,1.17134443,1964.5,1964.1,2.31971259]
[1617305591064,1.17134443,1964.5,1964.1,1.23355259]
[1617305591664,0.09132494,1964.7,1964.3,0.41]
[1617305591864,0.37132494,1964.8,1964.3,0.41]
[1617305592062,0.37132494,1964.8,1964.1,0.84355259]
[1617305592262,0.37132494,1964.8,1964.1,1.25355259]
[1617305592863,0.37132494,1964.8,1964.2,7.63501]
[1617305593686,6.21,1964.7,1964.1,1.25355259]
[1617305593886,0.09132494,1964.6,1964.1,0.84355259]
[1617305594089,0.48132494,1964.6,1964.1,0.84355259]
[1617305594287,4.92173712,1964.5,1964.1,0.84355259]
[1617305594488,5.32173712,1964.5,1964.1,0.84355259]
[1617305594686,10.33173712,1964.5,1964.1,0.84355259]
[1617305594886,0.4,1964.3,1964.1,0.84355259]
[1617305595488,1.6,1964.3,1964.1,0.84355259]
[1617305595709,8.45,1964.2,1964.1,0.84355259]
[1617305596511,2.807,1964.3,1964.1,0.84355259]
[1617305597311,19.5491,1964.6,1964.1,0.84355259]
[1617305597512,5.01,1964.4,1964.2,0.39]
[1617305597718,16.2691,1964.6,1964.2,0.34]
[1617305597913,0.50132494,1965.2,1964.4,0.4]
[1617305598114,0.50132494,1965.2,1964.5,8.4289]
[1617305598115,0.09132494,1965.2,1964.5,8.4289]
[1617305598351,42.40407054,1965.3,1964.6,0.14]
[1617305598352,6.38,1965.1,1964.6,0.14]
[1617305598958,7.58,1965.1,1964.6,0.14]
[1617305599154,7.86,1965.1,1964.6,0.14]
[1617305599353,7.86,1965.1,1964.5,0.4]
[1617305599556,8.26,1965.1,1964.4,10.178]
[1617305599752,5.01,1964.9,1964.4,10.318]
[1617305599952,11.98173712,1965.1,1964.4,10.318]
[1617305600357,2.72,1965.0,1964.4,0.14]
[1617305600553,2.72,1965.0,1964.6,0.4]
[1617305600754,0.28,1965.1,1964.6,0.4]
[1617305600755,1.48,1965.1,1964.6,0.4]
[1617305600982,0.09132494,1965.0,1964.6,0.4]
[1617305601182,5.10132494,1965.0,1964.4,0.14]
[1617305601386,6.30132494,1965.0,1964.4,0.14]
[1617305601784,6.21,1964.9,1964.4,0.14]
[1617305602183,6.49,1964.9,1964.4,0.53]
[1617305602383,5.29,1964.9,1964.5,0.4]
[1617305602584,0.28,1964.9,1964.5,0.4]
[1617305602782,0.28,1964.9,1964.4,0.14]
[1617305602986,0.37132494,1964.9,1964.4,0.55]
[1617305603383,9.10306206,1964.9,1964.4,0.55]
[1617305603586,4.09306206,1964.9,1964.4,0.55]
[1617305603786,1.57132494,1964.9,1964.4,0.55]
[1617305603987,1.57132494,1964.9,1964.4,0.04]
[1617305605189,0.09132494,1964.9,1964.6,0.38]
[1617305605391,0.09132494,1965.1,1964.6,0.38]
[1617305605593,9.31132494,1965.1,1964.6,0.38]
[1617305605790,3.46,1965.0,1964.6,0.38]
[1617305605989,0.09132494,1964.9,1964.4,0.04]
[1617305606210,0.09132494,1964.9,1964.4,0.42]
[1617305606411,0.37132494,1965.0,1964.6,0.39]
[1617305606611,0.37132494,1965.0,1964.5,7.63457]
[1617305606612,1.57132494,1965.0,1964.5,7.63457]
[1617305606810,1.48,1965.0,1964.5,7.63457]
[1617305607411,0.28,1965.0,1964.6,0.41]
[1617305607612,5.01,1965.1,1964.6,0.41]
[1617305607811,0.28,1965.1,1964.7,0.41]
[1617305608010,8.32,1965.1,1964.7,0.41]
[1617305608412,9.52,1965.1,1964.7,0.41]
[1617305608613,1.2,1964.9,1964.4,0.04]
[1617305608845,1.2,1964.9,1964.4,0.45]
[1617305609043,1.48,1964.9,1964.4,0.45]
[1617305609244,6.49,1964.9,1964.4,0.45]
[1617305609643,5.29,1964.9,1964.4,0.45]
[1617305610247,5.01,1964.8,1964.4,0.45]
[1617305610446,5.01,1964.8,1964.3,2.0]
[1617305610646,1.01099863,1964.8,1964.3,2.0]
[1617305610853,10.94273575,1964.8,1964.3,2.0]
[1617305611049,0.39,1964.7,1964.3,2.0]
[1617305611250,1.2,1964.5,1964.3,2.0]
[1617305611465,8.83796,1964.5,1964.3,2.0]
[1617305611864,23.66,1964.4,1964.3,2.0]
[1617305612662,5.01,1964.4,1964.3,2.0]
[1617305612864,6.21,1964.6,1964.3,2.0]
[1617305613064,5.01,1964.4,1964.3,2.0]
[1617305613264,5.01,1964.6,1964.3,2.0]
[1617305613666,5.01,1964.6,1964.4,0.4]
[1617305613883,1.45134443,1964.7,1964.6,10.54]
[1617305613884,1.17134443,1964.7,1964.6,10.54]
[1617305614091,48.30650864,1965.3,1964.6,10.54]
[1617305614092,42.12407054,1965.3,1964.6,10.54]
[1617305614287,0.09132494,1965.2,1964.6,10.54]
[1617305614491,0.09132494,1965.2,1964.6,10.68]
[1617305614686,0.09132494,1965.2,1964.7,0.4]
[1617305614890,6.32,1965.1,1964.7,8.03414]
[1617305615086,7.52,1965.1,1964.7,8.03414]
[1617305615286,0.28,1965.2,1964.7,8.03414]
[1617305615488,15.2754,1965.3,1965.0,0.4]
[1617305615689,15.2754,1965.3,1965.0,6.313]
[1617305617133,15.2754,1965.3,1965.2,8.56]
[1617305617336,16.7868,1965.5,1965.2,8.56]
[1617305617538,16.7868,1965.5,1965.3,0.38]
[1617305617735,16.7868,1965.5,1965.3,8.01198]
[1617305618134,16.7868,1965.5,1965.4,25.2491]
[1617305618333,16.7868,1965.5,1965.4,8.5491]
[1617305618532,16.7868,1965.5,1965.4,8.1391]
[1617305619539,25.4368,1965.5,1965.4,8.1391]
[1617305619739,16.7868,1965.5,1965.4,8.1391]
[1617305619939,17.9868,1965.5,1965.4,8.1391]
[1617305620343,16.7868,1965.5,1965.4,8.1391]
[1617305620540,16.7868,1965.5,1965.4,8.5291]
[1617305621345,16.7868,1965.5,1965.4,8.1391]
[1617305623568,25.9368,1965.5,1965.1,8.01252]
[1617305623970,16.7868,1965.5,1965.1,8.01252]
[1617305627918,16.7368,1965.5,1965.1,8.01252]
[1617305628319,2.72,1965.4,1965.1,8.01252]
[1617305628920,2.72,1965.4,1965.1,7.63252]
[1617305629125,2.72,1965.4,1964.9,10.70679]
[1617305629126,6.44173712,1965.4,1964.9,10.70679]
[1617305629324,3.46,1965.3,1964.9,0.39]
[1617305629521,3.46,1965.3,1964.6,7.0]
[1617305629744,3.46,1965.3,1964.8,0.41]
[1617305630143,3.46,1965.3,1965.1,4.0]
[1617305630744,8.38173712,1965.3,1965.1,4.0]
[1617305630950,23.76,1965.2,1965.1,4.0]
[1617305631348,23.76,1965.2,1964.3,12.5875]
[1617305631349,29.7,1965.1,1964.3,12.5875]
[1617305631550,9.69904558,1965.0,1964.3,2.0]
[1617305631752,0.09132494,1964.9,1964.3,2.0]
[1617305631947,0.322,1964.8,1964.3,2.0]
[1617305632361,6.532,1964.8,1964.3,2.0]
[1617305632765,6.532,1964.8,1964.3,9.63581]
[1617305633264,6.532,1964.8,1964.3,2.0]
[1617305634466,5.01,1964.8,1964.3,2.4]
[1617305634666,0.09132494,1964.9,1964.4,0.39]
[1617305634864,30.87134443,1965.1,1964.6,7.63425]
[1617305635691,30.87134443,1965.1,1964.6,10.35425]
[1617305635893,4.15307504,1965.0,1964.6,2.72]
[1617305636094,10.50137052,1965.0,1964.4,0.14]
[1617305636494,6.2,1964.9,1964.4,0.14]
[1617305637296,6.2,1964.9,1964.4,0.52]
[1617305637497,1.501,1965.0,1964.5,0.41]
[1617305638117,6.511,1965.0,1964.5,0.41]
[1617305638717,6.911,1965.0,1964.4,0.14]
[1617305639118,6.911,1965.0,1964.4,7.77517]
[1617305639317,6.911,1965.0,1964.4,7.72517]
[1617305639719,10.65407504,1965.0,1964.4,7.72517]
[1617305639918,15.41004558,1965.0,1964.4,0.09]
[1617305640118,6.911,1965.0,1964.4,0.09]
[1617305640943,5.35307504,1964.9,1964.4,0.09]
[1617305641141,2.8,1964.8,1964.4,0.09]
[1617305642344,8.83658,1964.9,1964.4,0.09]
[1617305643165,1.2,1964.9,1964.4,0.48]
[1617305643365,1.29132494,1964.9,1964.4,0.48]
[1617305643976,1.70132494,1964.9,1964.3,2.14]
[1617305645172,1.70132494,1964.9,1964.5,7.63602]
[1617305645372,1.61,1964.9,1964.5,7.63602]
[1617305646415,1.61,1964.9,1964.3,2.14]
[1617305646616,1.70132494,1964.9,1964.3,2.14]
[1617305646819,1.29132494,1964.9,1964.3,2.54]
[1617305647616,1.2,1964.9,1964.3,2.54]
[1617305647817,5.34307504,1964.9,1964.3,2.54]
[1617305648018,5.34307504,1964.9,1964.3,10.17667]
[1617305649021,1.2,1964.9,1964.3,10.17667]
[1617305650221,1.2,1964.7,1964.3,10.17667]
[1617305650421,5.01,1964.8,1964.3,10.17667]
[1617305650624,1.2,1964.7,1964.3,10.17667]
[1617305652850,1.2,1964.7,1964.3,9.77667]
[1617305653050,0.4,1964.5,1964.3,9.63667]
[1617305653251,1.2,1964.6,1964.3,2.0]
[1617305653668,9.95307504,1964.5,1964.3,2.0]
[1617305654068,10.36307504,1964.5,1964.3,2.0]
[1617305654864,10.36307504,1964.5,1964.1,0.84355259]
[1617305654865,1.2,1964.3,1964.1,0.84355259]
[1617305655069,17.59307504,1964.2,1964.1,0.84355259]
[1617305655271,15.05,1964.2,1964.1,0.84355259]
[1617305655466,18.79307504,1964.2,1964.1,0.84355259]
[1617305655864,3.74307504,1964.2,1964.1,0.84355259]
[1617305656090,1.17134443,1964.4,1964.1,1.25355259]
[1617305656293,1.17134443,1964.4,1964.2,0.41]
[1617305657091,3.83439998,1964.7,1964.1,0.84355259]
[1617305657294,4.249,1964.6,1964.1,1.23355259]
[1617305657493,5.01,1964.5,1964.1,8.87103259]
[1617305657692,3.049,1964.6,1964.1,8.87103259]
[1617305657894,3.049,1964.6,1964.2,0.39]
[1617305658094,3.049,1964.6,1964.3,0.39]
[1617305658294,0.329,1964.6,1964.3,2.4259751]
[1617305658492,5.01,1964.7,1964.4,0.41]
[1617305658920,5.01,1964.7,1964.3,2.0359751]
[1617305659121,12.74307504,1964.6,1964.5,7.63543]
[1617305659321,9.0,1964.6,1964.3,0.41]
[1617305659923,9.0,1964.6,1964.2,10.18145]
[1617305660722,9.0,1964.6,1964.4,7.63627]
[1617305661965,9.0,1964.6,1964.2,10.58145]
[1617305661966,9.0,1964.6,1964.5,7.95805907]
[1617305662371,9.0,1964.6,1964.5,0.32213907]
[1617305662967,15.0,1964.6,1964.5,0.32213907]
[1617305663570,17.37134443,1964.6,1964.5,0.32213907]
[1617305665774,18.37134443,1964.6,1964.5,0.32213907]
[1617305667393,10.0,1964.6,1964.5,0.32213907]
[1617305667593,1.0,1964.6,1964.5,0.32213907]
[1617305667993,9.8,1964.6,1964.5,0.32213907]
[1617305668399,9.8,1964.6,1964.5,7.95814907]
[1617305668594,11.0,1964.6,1964.5,7.95814907]
[1617305668795,16.01,1964.6,1964.5,0.32213907]
[1617305669416,16.01,1964.6,1964.5,0.70213907]
[1617305669617,7.21,1964.6,1964.5,0.70213907]
[1617305670218,7.21,1964.6,1964.5,0.32213907]
[1617305670417,6.01,1964.6,1964.5,0.32213907]
[1617305670819,1.0,1964.6,1964.5,0.32213907]
[1617305671021,11.25,1964.6,1964.5,0.32213907]
[1617305672444,1.0,1964.6,1964.5,0.32213907]
[1617305674045,1.0,1964.6,1964.5,0.71213907]
[1617305674250,1.0,1964.6,1964.5,8.34786907]
[1617305674668,1.0,1964.6,1964.5,11.42786907]
[1617305674872,1.0,1964.6,1964.5,32.77786907]
[1617305675067,1.0,1964.6,1964.5,35.77786907]
[1617305676668,1.0,1964.6,1964.5,41.64715823]
[1617305676867,1.0,1964.6,1964.5,41.65315823]
[1617305677512,1.0,1964.6,1964.5,43.65216023]
[1617305678512,1.0,1964.6,1964.5,40.65216023]
[1617305678916,1.0,1964.6,1964.5,19.30216023]
[1617305679115,1.0,1964.6,1964.5,17.30315823]
[1617305679313,1.0,1964.6,1964.5,11.43386907]
[1617305682119,1.0,1964.6,1964.5,11.42786907]
[1617305682351,1.0,1964.6,1964.5,11.03786907]
[1617305682551,1.0,1964.6,1964.5,11.42786907]
[1617305683552,1.0,1964.6,1964.5,11.43386907]
[1617305683751,1.0,1964.6,1964.5,21.73386907]
[1617305684753,0.9877945,1964.6,1964.5,28.37096907]
[1617305685571,0.9877945,1964.6,1964.5,18.07096907]
[1617305686172,0.9877945,1964.6,1964.5,11.43386907]
[1617305687795,0.9877945,1964.6,1964.5,23.78386907]
[1617305687996,0.9877945,1964.6,1964.5,29.93356907]
[1617305688597,0.9877945,1964.6,1964.5,17.09356907]
[1617305689418,0.9877945,1964.6,1964.5,14.01356907]
[1617305689615,0.9877945,1964.6,1964.5,7.85786907]
[1617305691422,0.9877945,1964.6,1964.5,8.24786907]
[1617305691622,0.9877945,1964.6,1964.5,11.60786907]
[1617305692624,0.9877945,1964.6,1964.5,17.61386907]
[1617305692847,0.9877945,1964.6,1964.5,11.61386907]
[1617305695472,0.9877945,1964.6,1964.5,11.61959103]
[1617305696074,0.9877945,1964.6,1964.5,11.22386907]
[1617305696875,0.9877945,1964.6,1964.5,11.61386907]
[1617305698597,0.9877945,1964.6,1964.5,24.21386907]
[1617305699998,0.9877945,1964.6,1964.5,11.61386907]
[1617305701822,0.9877945,1964.6,1964.5,8.25386907]
[1617305702023,0.9877945,1964.6,1964.5,7.86386907]
[1617305702621,0.9877945,1964.6,1964.5,8.25386907]
[1617305703248,0.9877945,1964.6,1964.5,8.2596352]
[1617305703448,0.9877945,1964.6,1964.5,11.6196352]
[1617305704256,0.9877945,1964.6,1964.5,11.2296352]
[1617305705057,0.9877945,1964.6,1964.5,11.6396352]
[1617305706673,0.9877945,1964.6,1964.5,8.2796352]
[1617305708698,0.9877945,1964.6,1964.5,7.8696352]
[1617305709296,0.9877945,1964.6,1964.5,11.1696352]
[1617305709497,0.9877945,1964.6,1964.5,7.8696352]
[1617305709696,0.9877945,1964.6,1964.5,7.86386907]
[1617305709897,0.9877945,1964.6,1964.5,8.24961414]
[1617305710497,0.9877945,1964.6,1964.5,16.09961414]
[1617305710896,0.9877945,1964.6,1964.5,20.63961414]
[1617305711528,0.9877945,1964.6,1964.5,20.64546449]
[1617305711728,0.9877945,1964.6,1964.5,12.78959978]
[1617305711929,0.9877945,1964.6,1964.5,12.40959978]
[1617305712128,0.9877945,1964.6,1964.5,12.40386907]
[1617305712328,0.9877945,1964.6,1964.5,7.86386907]
[1617305712528,0.9877945,1964.6,1964.5,7.86959986]
[1617305712934,0.9877945,1964.6,1964.5,7.87559986]
[1617305713129,0.9877945,1964.6,1964.5,7.86959986]
[1617305713330,0.9877945,1964.6,1964.5,11.31959986]
[1617305713946,0.9877945,1964.6,1964.5,10.90959986]
[1617305714149,0.9877945,1964.6,1964.5,10.90386907]
[1617305714348,0.9877945,1964.6,1964.5,0.23390218]
[1617305714349,2.5877945,1964.6,1964.5,0.23390218]
[1617305714547,19.5877945,1964.6,1964.5,0.23390218]
[1617305714947,19.5877945,1964.6,1964.5,0.22813907]
[1617305715747,0.9877945,1964.6,1964.5,0.22813907]
[1617305715948,0.9877945,1964.6,1964.5,0.22213907]
[1617305716372,10.5377945,1964.6,1964.5,0.22213907]
[1617305717975,11.7377945,1964.6,1964.5,0.22213907]
[1617305718177,11.7377945,1964.6,1964.5,7.85770907]
[1617305718374,11.7377945,1964.6,1964.5,0.22213907]
[1617305719093,0.9877945,1964.6,1964.5,0.22213907]
[1617305719294,0.9877945,1964.6,1964.5,7.85763907]
[1617305719695,0.9877945,1964.6,1964.5,10.91763907]
[1617305720108,0.9877945,1964.6,1964.5,11.29763907]
[1617305720898,0.9877945,1964.6,1964.5,11.30363907]
[1617305721744,0.9877945,1964.6,1964.5,10.92363907]
[1617305723548,0.9877945,1964.6,1964.5,10.92937441]
[1617305725551,0.9877945,1964.6,1964.5,11.30937441]
[1617305726968,0.9877945,1964.6,1964.5,10.92937441]
[1617305727569,0.9877945,1964.6,1964.5,11.31937441]
[1617305727970,0.9877945,1964.6,1964.5,18.31937441]
[1617305728170,0.9877945,1964.6,1964.5,11.31937441]
[1617305728573,0.9877945,1964.6,1964.5,10.92937441]
[1617305728972,0.9877945,1964.6,1964.5,10.92363907]
[1617305729371,6.6877945,1964.6,1964.5,7.86363907]
[1617305729799,0.9877945,1964.6,1964.5,7.85763907]
[1617305730399,0.9877945,1964.6,1964.5,7.615749]
[1617305730799,0.9877945,1964.6,1964.5,10.575749]
[1617305731802,0.9877945,1964.6,1964.5,10.581749]
[1617305732001,0.9877945,1964.6,1964.5,10.575749]
[1617305732424,0.9877945,1964.6,1964.5,7.615749]
[1617305732825,0.9377945,1964.6,1964.5,7.615749]
[1617305733828,0.9377945,1964.6,1964.5,7.621749]
[1617305734024,0.9377945,1964.6,1964.5,10.641749]
[1617305734226,0.9377945,1964.6,1964.5,20.781749]
[1617305735255,0.9377945,1964.6,1964.5,20.78744566]
[1617305736066,28.36967054,1965.6,1964.6,29.65]
[1617305736256,23.6137,1965.6,1965.2,0.39]
[1617305736464,32.358,1965.8,1965.2,0.39]
[1617305736653,0.09132494,1965.7,1965.2,0.53]
[1617305736854,32.358,1965.8,1965.5,7.63076]
[1617305737051,6.564,1965.7,1965.5,7.63076]
[1617305737253,6.6,1965.7,1965.5,7.63076]
[1617305738100,6.6,1965.7,1965.3,10.17435]
[1617305738302,6.6,1965.7,1965.2,0.14]
[1617305738502,1.58,1965.5,1965.0,0.006]
[1617305738710,1.58,1965.5,1965.0,0.14]
[1617305738711,1.923,1965.5,1965.0,0.14]
[1617305739106,1.923,1965.5,1965.1,7.63292]
[1617305740105,0.4,1965.4,1965.1,7.63292]
[1617305741711,0.4,1965.4,1965.1,6.63292]
[1617305742306,0.4,1965.4,1965.2,0.27424256]
[1617305742507,1.543,1965.5,1965.2,0.27424256]
[1617305742727,1.543,1965.5,1965.2,7.90681256]
[1617305743734,1.17134443,1965.7,1965.2,8.28681256]
[1617305744030,17.2137,1965.8,1965.2,11.04681256]
[1617305744430,17.5077,1965.8,1965.3,0.14]
[1617305745030,1.2,1965.7,1965.3,0.14]
[1617305745275,17.5077,1965.8,1965.3,2.1748787]
[1617305745475,0.336,1965.7,1965.3,2.1748787]
[1617305745679,0.336,1965.7,1965.3,0.14]
[1617305745876,2.68,1965.6,1965.3,0.14]
[1617305746077,3.09,1965.6,1965.3,0.14]
[1617305746476,3.09,1965.6,1965.2,0.27424256]
[1617305746680,0.38,1965.5,1965.2,0.27424256]
[1617305746882,0.38,1965.5,1965.2,7.90673256]
[1617305747077,0.38,1965.5,1965.2,0.27424256]
[1617305747882,3.47132494,1965.6,1965.2,0.27424256]
[1617305748884,0.364,1965.5,1965.2,0.27424256]
[1617305749085,0.754,1965.5,1965.2,0.27424256]
[1617305749283,0.754,1965.5,1965.2,7.90681256]
[1617305752128,0.364,1965.5,1965.2,7.90681256]
[1617305756750,3.12134443,1965.7,1965.2,7.90681256]
[1617305756949,3.21266937,1965.7,1965.2,7.90681256]
[1617305757553,0.09132494,1965.7,1965.5,0.41]
[1617305757753,18.38504443,1965.8,1965.5,0.41]
[1617305758582,1.31937509,1966.2,1965.6,7.63074]
[1617305758783,7.66,1966.1,1965.8,5.8482709]
[1617305758983,1.21937509,1966.2,1965.8,5.8482709]
[1617305759182,0.28,1966.2,1965.8,5.8482709]
[1617305759580,0.28,1966.2,1965.8,6.3882709]
[1617305760181,0.28,1966.2,1966.0,7.62818]
[1617305762403,0.23,1966.2,1966.0,7.62818]
[1617305763204,0.23,1966.2,1966.0,8.02818]
[1617305763405,14.2,1966.3,1966.0,10.0622926]
[1617305764030,14.2,1966.3,1966.1,7.62765]
[1617305764431,13.0,1966.3,1966.1,7.62765]
[1617305764630,13.0,1966.3,1966.1,7.82345146]
[1617305765630,14.2,1966.3,1966.1,7.82345146]
[1617305768064,14.6,1966.3,1966.1,0.19580146]
[1617305768465,34.66,1966.2,1966.1,0.19580146]
[1617305768664,35.86,1966.2,1966.1,0.19580146]
[1617305769084,37.03134443,1966.2,1966.1,0.19580146]
[1617305769484,32.02134443,1966.2,1966.1,0.19580146]
[1617305769684,2.37134443,1966.2,1966.1,0.19580146]
[1617305769886,8.77134443,1966.2,1966.1,0.19580146]
[1617305770286,6.4,1966.2,1966.1,0.19580146]
[1617305772108,7.6,1966.2,1966.1,0.19580146]
[1617305772305,7.6,1966.2,1966.1,7.82518146]
[1617305772505,8.77134443,1966.2,1966.1,7.82518146]
[1617305772906,9.16134443,1966.2,1966.1,7.82518146]
[1617305773906,8.77134443,1966.2,1966.1,0.19580146]
[1617305774330,7.99,1966.2,1966.1,0.19580146]
[1617305774533,7.99,1966.2,1966.1,1.46e-06]
[1617305774733,0.38,1965.6,1965.4,2.0]
[1617305774933,0.681,1965.6,1965.4,2.0]
[1617305775132,21.64,1965.5,1965.4,2.0]
[1617305775531,29.4073,1965.5,1965.4,2.0]
[1617305776132,29.4073,1965.5,1964.8,7.63995]
[1617305776333,1.6,1965.3,1964.7,0.006]
[1617305776531,0.09132494,1965.2,1964.7,0.526]
[1617305776758,0.21,1965.1,1964.7,0.386]
[1617305776958,1.41,1965.1,1964.7,0.386]
[1617305777160,1.41,1965.1,1964.7,0.38]
[1617305777960,1.41,1965.1,1964.6,0.146]
[1617305778161,1.41,1965.1,1964.6,0.14]
[1617305778363,0.364,1965.0,1964.6,0.14]
[1617305778560,0.364,1965.0,1964.8,0.41]
[1617305778760,1.2,1965.1,1964.8,0.41]
[1617305778993,0.28,1965.1,1964.8,0.084]
[1617305779599,2.8,1965.2,1964.8,7.71787]
[1617305779795,3.08,1965.2,1964.8,7.71787]
[1617305779996,4.28,1965.2,1964.8,7.71787]
[1617305780394,0.28,1965.2,1964.8,7.71787]
[1617305781396,0.28,1965.2,1964.9,0.16143869]
[1617305781597,0.28,1965.2,1964.9,7.79515869]
[1617305784204,3.14,1965.2,1964.9,7.79515869]
[1617305784405,4.34,1965.2,1964.9,7.79515869]
[1617305784629,1.48,1965.2,1964.9,7.79515869]
[1617305784828,1.48,1965.2,1964.9,0.16143869]
[1617305785429,6.49,1965.2,1964.9,0.16143869]
[1617305786029,6.9,1965.2,1964.9,0.16143869]
[1617305787128,6.49,1965.2,1964.9,0.16143869]
[1617305787955,6.9,1965.2,1964.9,0.16143869]
[1617305788154,17.1,1965.0,1964.9,0.16143869]
[1617305788354,15.9,1965.0,1964.9,0.16143869]
[1617305788757,1.2,1965.1,1964.9,0.16143869]
[1617305788957,25.9035235,1965.4,1964.9,16.20472869]
[1617305788958,1.0103035,1965.4,1964.9,16.20472869]
[1617305789160,0.09132494,1965.7,1965.0,4.1351128]
[1617305789360,16.3046,1965.9,1965.0,4.2191128]
[1617305789557,16.3046,1965.9,1965.5,0.494]
[1617305789986,17.5046,1965.9,1965.7,7.62977]
[1617305790393,2.68,1965.8,1965.7,7.62977]
[1617305790585,9.03,1965.8,1965.7,7.62977]
[1617305790785,2.68,1965.8,1965.7,7.62977]
[1617305791185,2.68,1965.8,1965.6,10.17303]
[1617305791392,3.88,1965.8,1965.3,2.41]
[1617305791588,3.88,1965.8,1965.4,0.41]
[1617305792187,3.88,1965.8,1965.3,2.14]
[1617305792387,3.88,1965.8,1965.3,2.52]
[1617305792609,0.343,1965.7,1965.3,2.52]
[1617305792810,0.343,1965.7,1965.3,2.14]